Cogmind - Beta 16 @@@ ROGUE MODE // 2025.10.25 @ 12:45:16 Player: KeKe Result: Destroyed by 7Y-KHB(R) with Subdweller Machine Gun Performance ------------- Evolutions (0) 0 Regions Visited (2) 400 Robots Destroyed (28) 140 Value Destroyed (737) 737 Prototype IDs (1) 20 Alien Tech Used (0) 0 Bonus (0) 0 TOTAL SCORE: 1297 Bonus ------- None Cogmind --------- Core Integrity 0/250 Matter 203/300 Energy 415/415 System Corruption 0% Temperature Cool (0) Movement Treading (240) Ox1 Location -10/Subcaves Parts ------- > --- POWER (1+3) ------ Ion Engine Improved Ion Engine (+) > --- PROPULSION (2) --- Light Treads Light Treads > --- UTILITY (2) ------ Large Storage Unit Power Bank > --- WEAPON (2) ------- Heavy Assault Rifle Light Cannon > --- INVENTORY (15) --- Wheel Wheel Small Storage Unit Large Matter Pod (150) Light Assault Rifle Peak State ------------ > --- POWER ------------ Ion Engine Improved Ion Engine > --- PROPULSION ------- Light Treads Light Treads > --- UTILITY ---------- Large Storage Unit Power Bank > --- WEAPON ----------- Heavy Assault Rifle Light Cannon > --- INVENTORY -------- Wheel Wheel Small Storage Unit Large Matter Pod Light Assault Rifle [Rating: 18] Favorites ----------- Power Ion Engine Engine Ion Engine Propulsion Light Treads Treads Light Treads Leg Aluminum Leg Utility Large Storage Unit Device Power Bank Storage Large Storage Unit Processor Signal Interpreter Protection Light Armor Plating Weapon Small Laser Energy Gun Small Laser Ballistic Gun Assault Rifle Ballistic Cannon Light Cannon Build | -11 -10 -10 ------- Run | Yrd Mat Sub Slots Evolved . | . . . Power . | . . . Propulsion . | . . . Utility . | . . . Weapon . | . . . Parts Attached 14 | . 9 5 Power 3 | . 2 1 Engine 3 | . 2 1 Core . | . . . Reactor . | . . . Propulsion 2 | . 2 . Treads 2 | . 2 . Leg . | . . . Wheel . | . . . Hover . | . . . Flight . | . . . Utility 4 | . 3 1 Device 1 | . . 1 Storage 1 | . 1 . Processor 1 | . 1 . Hackware . | . . . Protection 1 | . 1 . Artifact . | . . . Weapon 5 | . 2 3 Energy Gun 1 | . 1 . Energy Cannon . | . . . Ballistic Gun 3 | . . 3 Ballistic Cannon 1 | . 1 . Launcher . | . . . Special Weapon . | . . . Impact Weapon . | . . . Slashing Weapon . | . . . Piercing Weapon . | . . . Special Melee Weapon . | . . . Unidentified Prototypes 1 | . . 1 Parts Lost 6 | . 6 . Power 2 | . 2 . Propulsion 1 | . 1 . Utility 1 | . 1 . Weapon 2 | . 2 . Highest Loss Streak 3 | . 3 . To Critical Strikes . | . . . Average Backups 5 | 6 5 4 Power . | 1 . . Propulsion 2 | 4 2 2 Utility 1 | . 1 2 Weapon . | 1 . . Tool/Special . | . . . Unused Backups 4 | . 2 2 Power . | . . . Propulsion 1 | . 1 . Utility 3 | . 1 2 Weapon . | . . . Tool/Special . | . . . Average Slot Usage (%) 88 | . 93 79 Engine 14 | . 13 15 Treads 18 | . 16 22 Leg 7 | . 11 . Device 2 | . . 6 Storage 13 | . 14 11 Processor 3 | . 4 . Protection 2 | . 3 . Energy Gun 9 | . 14 1 Ballistic Gun 9 | . 8 10 Ballistic Cannon 7 | . 5 11 Peak Build Rating 18 | 6 7 18 Average Rating 8 | 6 6 14 On Entrance 6 | 6 6 6 Avg Prop Armor Cover (%) 6 | . 6 . Naked Turns . | . . . Heaviest Build 41 | 13 31 41 Greatest Support 40 | 20 40 40 Greatest Overweight (x) 1 | . 1 1 Average Overweight (x) . | . . . Largest Inventory Capacity 15 | 8 15 15 Average Capacity 14 | 8 14 15 Most Carried 8 | 6 8 5 Average Carried 5 | 6 5 4 Final Capacity 15 | 8 15 15 Final Carried 6 | 6 4 5 Class Distribution -------------------- 100% | Mutant Dominant Class ---------------- Mutant | -10/Materials Mutant | -10/Subcaves Resources | -11 -10 -10 ----------- Run | Yrd Mat Sub Matter Collected 1034 | 168 710 156 Remotely . | . . . Salvage Created 946 | 27 840 79 Parts 57 | 1 48 8 Haulers Intercepted 2 | . 2 . Recyclers Shooed . | . . . Parts Field Recycled . | . . . Retrieved Matter . | . . . Parts Self-Destructed 7 | . . 7 Prevented . | . . . Parts Restored . | . . . Kills | -11 -10 -10 ------- Run | Yrd Mat Sub Combat Hostiles Destroyed 24 | . 21 3 Guns 21 | . 20 1 Cannons 3 | . 1 2 Classes Destroyed 7 | 1 4 2 Worker 1 | . 1 . Tunneler 1 | 1 . . Hauler 2 | . 2 . Swarmer 6 | . 5 1 Grunt 16 | . 16 . Sentry 1 | . . 1 Subdweller 1 | . . 1 Best Kill Streak 5 | 1 5 2 Combat Bots Only 5 | . 5 2 Max Kills in Single Turn 1 | 1 1 1 Gunslinging . | . . . Exploded . | . . . Melee . | . . . Uniques/NPCs Destroyed . | . . . Combat | -11 -10 -10 -------- Run | Yrd Mat Sub Hostile Shots Fired 147 | . 123 24 Missed 43 | . 37 6 Hits 104 | . 86 18 Projectile 104 | . 86 18 Damage Taken 1245 | . 953 292 Core 257 | . 192 65 Absorbed by Shields . | . . . Core Remaining (%) 100 | 100 . . Volleys Fired 186 | 4 166 16 Largest 2 | 2 2 2 Hottest 70 | 60 70 60 Shots Fired 281 | 8 244 29 Gun 177 | 8 156 13 Cannon 104 | . 88 16 Launcher . | . . . Special . | . . . Kinetic 192 | 4 159 29 Thermal 89 | 4 85 . Explosive . | . . . Electromagnetic . | . . . Robot Hit Streak 14 | 3 14 9 Robot Miss Streak 4 | 2 4 3 Penetration Max . | . . . Secondary Targets 2 | . 2 . Max Gunslinging Chain 1 | . 1 . Shots Hit Robots 125 | 3 106 16 Core Hits 49 | 2 41 6 Critical Kills . | . . . Critical Parts Destroyed 2 | . 2 . Critical Strikes 3 | . 2 1 Destroy 2 | . 2 . Blast 1 | . . 1 Melee Attacks . | . . . Impact . | . . . Slashing . | . . . Piercing . | . . . Sneak Attacks . | . . . Combat Hostiles . | . . . Follow-up Attacks . | . . . Damage Inflicted 1635 | 50 1343 242 Guns 1369 | 50 1216 103 Cannons 266 | . 127 139 Explosions . | . . . Melee . | . . . Ramming . | . . . Kinetic 1045 | 28 775 242 Thermal 590 | 22 568 . Explosive . | . . . Electromagnetic . | . . . Impact . | . . . Slashing . | . . . Piercing . | . . . Highest Corruption . | . . . Average Corruption . | . . . Corruption Purged . | . . . Corruption Blocked . | . . . Overload Shots . | . . . Overflow Damage . | . . . Projectiles . | . . . Explosions . | . . . Melee . | . . . Knockbacks 3 | . 2 1 Impact . | . . . Kinetic 3 | . 2 1 Secondary . | . . . Self-Inflicted Damage . | . . . Shots . | . . . Rammed . | . . . Targets Rammed . | . . . Kicked . | . . . Crushed . | . . . Highest Temperature 138 | . 138 . Average Temperature 38 | . 38 . Received Heat Transfer 519 | . 462 57 Siege Activations . | . . . Martial Activations . | . . . Shielding Activations . | . . . Robots Disrupted . | . . . Combat Hostiles . | . . . Robots Corrupted . | . . . Combat Hostiles . | . . . Parts Fried . | . . . Impact Corruptions . | . . . Robots Melted . | . . . Combat Hostiles . | . . . Parts Melted 1 | . 1 . Heat Transferred 1350 | 50 1300 . Parts Sabotaged . | . . . Parts Stolen . | . . . Parts Stripped . | . . . Power Chain Reactions . | . . . Alert | -11 -10 -10 ------- Run | Yrd Mat Sub Maximum Alert Level . | . . . Low Security (%) 100 | 100 100 . Level 1 . | . . . Level 2 . | . . . Level 3 . | . . . Level 4 . | . . . Level 5 . | . . . High Security . | . . . Max Security . | . . . Peak Influence 192 | 5 192 . Initial 3 | . 3 . Average 95 | 3 96 . Influence Increases 646 | 5 601 40 Destroy 0b10 Robot/C 460 | . 420 40 Destroy 0b10 Robot/NC 20 | 5 15 . Destroy Leader 104 | . 104 . Disable Machine 15 | . 15 . Destroy Structure 2 | . 2 . Lose Combat Pursuer 45 | . 45 . Influence Decreases 646 | . 529 117 Entered New Map 39 | . 2 37 Time Decay 557 | . 477 80 Lost Part 50 | . 50 . Squads Dispatched 6 | . 6 . Investigation 3 | . 3 . Extermination . | . . . Reinforcement 3 | . 3 . Assault . | . . . Garrison . | . . . Intercept . | . . . Searches Triggered . | . . . Construction Impeded . | . . . Haulers Reinforced . | . . . Active Scanning Responses . | . . . Cargo Convoy Interrupts . | . . . Stealth | -11 -10 -10 --------- Run | Yrd Mat Sub Distress Signals 5 | . 5 . Communications Jammed . | . . . Distress Signals . | . . . Times Spotted 42 | . 38 4 Peak Tracking Total 6 | . 6 2 Tactical Retreats 2 | . 2 . Traps | -11 -10 -10 ------- Run | Yrd Mat Sub Traps Triggered 2 | . 2 . Indirectly . | . . . Trap Hack Attempts . | . . . Triggered . | . . . Disarmed . | . . . Reprogrammed . | . . . Reused . | . . . Traps Extracted . | . . . Installed . | . . . Triggered . | . . . Machines | -11 -10 -10 ---------- Run | Yrd Mat Sub Machines Disabled 2 | . 1 1 Max in Single Turn 1 | . 1 1 Machines Repaired . | . . . Machines Dismantled . | . . . Machines Sabotaged . | . . . Overloaded Fab Kills . | . . . Hacking | -11 -10 -10 --------- Run | Yrd Mat Sub Machines Accessed 1 | . 1 . Terminals 1 | . 1 . Fabricators . | . . . Repair Stations . | . . . Recycling Units . | . . . Scanalyzers . | . . . Garrison Access . | . . . Total Hacks 3 | . 3 . Successful 1 | . 1 . Failed 2 | . 2 . Catastrophic 1 | . 1 . Database Lockouts . | . . . Manual 3 | . 3 . Terminals 3 | . 3 . Fabricators . | . . . Repair Stations . | . . . Recycling Units . | . . . Scanalyzers . | . . . Garrison Access . | . . . Terminal Hacks . | . . . Fabricator Hacks . | . . . Repair Station Hacks . | . . . Recycling Unit Hacks . | . . . Scanalyzer . | . . . Garrison Access Hacks . | . . . Unauthorized Hacks 1 | . 1 . Terminals 1 | . 1 . Botnet 1 | . 1 . Fabricators . | . . . Repair Stations . | . . . Recycling Units . | . . . Scanalyzers . | . . . Garrison Access . | . . . Data Cores Recovered . | . . . Used . | . . . Hacking Detections 1 | . 1 . Full Trace Events 1 | . 1 . Feedback Events . | . . . Feedback Blocked . | . . . Robot Schematics Acquired . | . . . Robots Built . | . . . Authchips . | . . . Time . | . . . Total Robot Build Rating . | . . . Part Schematics Acquired . | . . . Parts Built . | . . . Authchips . | . . . Time . | . . . Total Part Build Rating . | . . . Part Studies Acquired . | . . . Parts Repaired . | . . . Time . | . . . Parts Recycled . | . . . Recycled Matter . | . . . Retrieved Matter . | . . . Retrieved Components . | . . . Parts Scanalyzed . | . . . Part Schematics Acquired . | . . . Parts Damaged . | . . . Bothacking | -11 -10 -10 ------------ Run | Yrd Mat Sub Used RIF Installer . | . . . Robots Hacked . | . . . Non-combat . | . . . Combat . | . . . Robot Hacks Applied . | . . . Relay Couplers Released . | . . . Fabnet Peak Effective % . | . . . Robots Rewired . | . . . Allies Hacked . | . . . Hacks Repelled . | . . . Allies | -11 -10 -10 -------- Run | Yrd Mat Sub Total Allies . | . . . Largest Group . | . . . Highest-Rated Group . | . . . Highest-Rated Ally . | . . . Total Orders . | . . . Ally Attacks . | . . . Total Damage . | . . . Kills . | . . . Allies Corrupted . | . . . Allies Melted . | . . . Intel | -11 -10 -10 ------- Run | Yrd Mat Sub Active Infowar (turns) . | . . . Robot Analysis Total . | . . . Derelict Logs Recovered 1 | . . 1 Drone Launches . | . . . Drone Recoveries . | . . . Exploration | -11 -10 -10 ------------- Run | Yrd Mat Sub Turns Passed 2772 | 15 1848 909 Spaces Moved 1088 | 3 635 450 Core . | . . . Treads 913 | . 463 450 Legs 175 | 3 172 . Wheels . | . . . Hover . | . . . Flight . | . . . Fastest Speed 120 | 120 120 160 Average Speed 170 | 120 158 187 Slowest Speed 240 | 120 240 240 Overloaded Moves . | . . . Propulsion Burnouts . | . . . Robots Hopped . | . . . Potential Cave-ins . | . . . Cave-ins Triggered . | . . . Exploration Rate (%) 40 | 2 87 31 Regions Visited 2 Branch Regions 1 Pre-discovered Areas 1 | . . 1 Known Exits Taken . | . . . Unknown Exits Taken 2 | 1 1 . Scrap Searched 1 | . . 1 Spaces Dug . | . . . Terrain Destroyed . | . . . Melee . | . . . Projectile . | . . . AOE . | . . . Terrain Rammed . | . . . Walls Destroyed . | . . . Machines Disabled . | . . . Actions | -11 -10 -10 --------- Run | Yrd Mat Sub Total 1724 | 6 1233 485 Wait 430 | . 418 12 Move 1086 | 2 634 450 Hop . | . . . Pick Up 3 | . 3 . Fast Attach 7 | . 3 4 Attach 4 | . 4 . Detach . | . . . Swap 3 | . 2 1 Drop 5 | . 3 2 Fire 186 | 4 166 16 Melee . | . . . Ram . | . . . Kick . | . . . Crush . | . . . Escape Stasis . | . . . Rewire . | . . . Trap . | . . . Miscellaneous . | . . . Route ------- -11/Scrapyard -10/Materials (discovered 5 exits: [*Mat x3] / [*Min] / [*Sub]) -10/Subcaves History --------- Turn | Location | Event 14 | -11/Scrapyard | Discovered new exit (range 0) 16 | -11/Scrapyard | Entered Materials 114 | -10/Materials | Discovered new exit (range 16) 307 | -10/Materials | Build established: Mutant 720 | -10/Materials | Discovered new exit (range 13) 1021 | -10/Materials | Discovered new exit (range 8) 1145 | -10/Materials | Core integrity fell below 50% 1177 | -10/Materials | Lost 3 parts (1u2w) 1207 | -10/Materials | Discovered new exit (range 10) 1861 | -10/Materials | Discovered new exit (range 3) 1864 | -10/Materials | Entered Subcaves 1884 | -10/Subcaves | Learned location of Recycling (-9) 2131 | -10/Subcaves | Visited 4L-MR0's lab 2146 | -10/Subcaves | Found Prototype Device 2146 | -10/Subcaves | Identified Power Bank 2147 | -10/Subcaves | Attached Power Bank, gained temporary slots: Power x3 2352 | -10/Subcaves | Core integrity fell below 20% 2434 | -10/Subcaves | A swath of the cavern ceiling suddenly collapsed 2773 | -10/Subcaves | Destroyed by 7Y-KHB(R) with Subdweller Machine Gun Last Messages --------------- 02353_ S-10 Pest destroyed. 02359_ Dropped Broken Sub. Machine Gun. 02359_ Acquired Lgt. Assault Rifle. 02363_ Y-45 Defender destroyed. 02364_ Acquired 46 matter. 02366_ Acquired 4 matter. 02369_ Acquired Imp. Ion Engine. 02371_ Subatomizers dissect the Heat Sink. 02372_ Heat Sink fries itself beyond repair. 02379_ Lgt. Treads fries itself beyond repair. 02379_ Acquired 10 matter. 02381_ Acquired 4 matter. 02382_ Subatomizers dissect the Broken Sub. Machine Gun. 02386_ Acquired 3 matter. A swath of the cavern ceiling suddenly collapses. 02691_ Acquired 14 matter. 02708_ Acquired 15 matter. 02710_ Acquired 5 matter. 02765_ BI-3BR(R) destroyed. 02773_ Subatomizers dissect the Sub. Power Source. Map ----- +----------------------------------------------------+ | ???????# ##### #??????????????? | | ???????## # ##?# #??????????????? | | ????????## ### ???# ##??????????????? | | ?????????# ??##??## #???????????????? | | ????????? ???????# #???????????????? | | ???????? ???????# #???????????????? | | ????????????? ## ##??????????????? | | ?????????????? #?## #??????????????? | | ????????????? ## ##### #??????????????? | | ???????????? #?##?# #??????????????? | | ????????????? ??????# ###??????????????? | | ????????????????????## ##???????????????? | | ?????????????????????# ##??????????????? | | ?????????????????????## #??????????????? | | ???????????#??????????## ##??????????????? | | ??????????## ??????????# ###???????????????? | | ????????? # ###?#???## ##?????????????????? | | ????????? ## ??# #??????????????????? | | ????????? ### ##?????????????????? | | ?????????# # ##????????????????? | | ????????? " ##???????????????? | | ????????? " #???????????????? | | ??????????" # #### #???????????????? | | ????????????## # #?## #???????????????? | | ?????????????## ?## ##*### ##???????????????? | | ??????????????#??# ?##R@= #????????????????? | | ?????????????????# ???##! ##????????????????? | | ?????????????????# ????#####?????????????????? | | ?????????????????# ???????????????????????????? | | ?????????????????#????????????????????????????? | | ??????????????????????????????????????????????? | | ??????????????????????????????????????????????? | | ??????????????????????????????????????????????? | | ??????????????????????????????????????????????? | | ??????????????????????????????????????????????? | | ??????????????????????????????????????????????? | | ??????????????????????????????????????????????? | | ??????????????????????????????????????????????? | | ??????????????????????????????????????????????? | | ??????????????????????????????????????????????? | | ??????????????????????????????????????????????? | | ??????????????????????????????????????????????? | | ??????????????????????????????????????????????? | | ??????????????????????????????????????????????? | | ??????????????????????????????????????????????? | | ??????????????????????????????????????????????? | | ??????????????????????????????????????????????? | | ??????????????????????????????????????????????? | | ??????????????????????????????????????????????? | | ??????????????????????????????????????????????? | +----------------------------------------------------+ Best States ------------- Heat Dissipation 25 Energy Generation 17 Energy Capacity 415 Matter Stores 300 Matter Capacity 300 Sight Range 16 Terrain Scan Density 10 Armor Coverage 150 Evasion (%) 55 Recoil Reduction 2 Item Schematics ----------------- None Robot Schematics ------------------ None Fabricated ------------ Nothing Repaired ---------- Nothing Studied --------- None Alien Tech Used ----------------- None Achievements -------------- None Challenges ------------ None Game ------ Seed ShockboltShockMembrane Manual? 0 Play Time 00:17:37 Cumulative 125.4 hours Start 2025.10.25 @ 11:52:21 End 2025.10.25 @ 12:45:16 Sessions 1 Manual Loads 0 Difficulty Rogue Special Mode None Game No. 122 Rogue 122 Adventurer 0 Explorer 0 Win Type - Total 1 Types 1/0/0/0/0/0/0/0/0/0 Lore% 60 Gallery% 50 Achievement% 32 Wizard Run 0 Options --------- Layout 0 ASCII 0 Keyboard 0 Movement Mouse Keybinds 0 Fullscreen 2 Font 18/X11 Map View 76x50 Zoom Use 0% Tactical HUD 1 Map Filters NONE Filters NONE Steam 1 RUN: 60bdd458-b271-434e-bf6a-ae13cda071b6